[Event "RUS-ch Rapid 2021"]
[Site "Sochi"]
[Date "2021.10.12"]
[Round "3.18"]
[White "Khegay, Dmitriy"]
[Black "Indzhiev, Aldar"]
[Result "1-0"]
[ECO "A45"]
[WhiteElo "2521"]
[BlackElo "2101"]
[Annotator "ChessBase"]
[PlyCount "103"]
[EventDate "2021.10.12"]
[EventType "swiss"]
[EventCountry "RUS"]
[SourceTitle "playchess.com"]
[Source "ChessBase"]
[SourceQuality "1"]
[TimeControl "900+10"]

1. d4 {[%emt 0:00:13]} Nf6 {[%emt 0:00:00]} 2. Bf4 {[%emt 0:00:01]} e6 {
[%emt 0:00:10]} 3. e3 {[%emt 0:00:00]} b6 {[%emt 0:00:03]} 4. Qf3 {[%emt 0:00:
00]} Nc6 {[%emt 0:00:25]} 5. Nc3 {[%emt 0:00:06]} Bb4 {[%emt 0:00:47]} 6. Nge2
{[%emt 0:00:04]} Ba6 {[%emt 0:00:15]} 7. a3 {[%emt 0:00:08]} Bxc3+ {[%emt 0:01:
45]} 8. Nxc3 {[%emt 0:00:03]} Bxf1 {[%emt 0:00:15]} 9. Rxf1 {[%emt 0:00:00]}
O-O {[%emt 0:00:24]} 10. g4 {[%emt 0:00:12]} Ne7 {[%emt 0:00:33]} 11. Bg5 {
[%emt 0:00:21]} d5 {[%emt 0:03:46]} 12. Bxf6 {[%emt 0:00:10]} gxf6 {[%emt 0:00:
00]} 13. Qxf6 {[%emt 0:00:02]} c5 {[%emt 0:00:35]} 14. h4 {[%emt 0:00:37]} Ng6
{[%emt 0:00:06]} 15. Qxd8 {[%emt 0:00:03]} Rfxd8 {[%emt 0:00:09]} 16. h5 {
[%emt 0:00:08]} Ne7 {[%emt 0:00:00]} 17. O-O-O {[%emt 0:00:18]} Rab8 {[%emt 0:
00:46]} 18. f4 {[%emt 0:04:38]} f5 {[%emt 0:00:14]} 19. g5 {[%emt 0:00:40]} c4
{[%emt 0:00:22]} 20. Kd2 {[%emt 0:00:53]} Nc8 {[%emt 0:00:50]} 21. Ke2 {
[%emt 0:01:04]} Nd6 {[%emt 0:00:18]} 22. Rg1 {[%emt 0:00:00]} Rd7 {[%emt 0:01:
19]} 23. Nb1 {[%emt 0:00:27]} Ne4 {[%emt 0:00:05]} 24. Nd2 {[%emt 0:00:03]}
Nxd2 {[%emt 0:00:06]} 25. Kxd2 {[%emt 0:00:07]} Kg7 {[%emt 0:00:09]} 26. b3 {
[%emt 0:00:51]} Rc7 {[%emt 0:00:14]} 27. bxc4 {[%emt 0:00:00]} Rxc4 {[%emt 0:
00:03]} 28. Rb1 {[%emt 0:00:02]} Rbc8 {[%emt 0:00:10]} 29. Rgc1 {[%emt 0:00:00]
} Rc3 {[%emt 0:00:34]} 30. a4 {[%emt 0:00:50]} Ra3 {[%emt 0:00:22]} 31. Ra1 {
[%emt 0:00:34]} Rac3 {[%emt 0:01:42]} 32. a5 {[%emt 0:00:43]} b5 {[%emt 0:00:
02]} 33. a6 {[%emt 0:00:02]} b4 {[%emt 0:00:49]} 34. Rab1 {[%emt 0:00:02]} R3c4
{[%emt 0:00:19]} 35. Rb2 {[%emt 0:00:26]} R8c6 {[%emt 0:00:21]} 36. Ra1 {
[%emt 0:00:22]} Rb6 {[%emt 0:00:58]} 37. Ra5 {[%emt 0:00:13]} Kg8 {[%emt 0:01:
57]} 38. Rc5 {[%emt 0:00:48]} Rxc5 {[%emt 0:00:27]} 39. dxc5 {[%emt 0:00:00]}
Rxa6 {[%emt 0:00:09]} 40. Rxb4 {[%emt 0:00:05]} Rc6 {[%emt 0:00:09]} 41. Rb5 {
[%emt 0:00:25]} a6 {[%emt 0:00:04]} 42. Rb6 {[%emt 0:00:14]} Rxc5 {[%emt 0:00:
14]} 43. Rxe6 {[%emt 0:00:12]} a5 {[%emt 0:00:05]} 44. Ra6 {[%emt 0:00:01]} Kg7
{[%emt 0:00:15]} 45. Ra7+ {[%emt 0:00:02]} Kg8 {[%emt 0:00:00]} 46. Kd3 {
[%emt 0:00:00]} h6 {[%emt 0:00:21]} 47. g6 {[%emt 0:00:07]} Rb5 {[%emt 0:00:08]
} 48. Kd4 {[%emt 0:00:07]} Rb2 {[%emt 0:00:05]} 49. Ke5 {[%emt 0:00:04]} Rxc2 {
[%emt 0:00:10]} 50. Rxa5 {[%emt 0:00:06]} Rc3 {[%emt 0:00:06]} 51. Kf6 {
[%emt 0:00:06]} Rc6+ {[%emt 0:00:07]} 52. Kxf5 {[%emt 0:00:00]} 1-0

[Event "RUS-ch Rapid 2021"]
[Site "Sochi"]
[Date "2021.10.12"]
[Round "3.21"]
[White "Smirnov, Timofey"]
[Black "Bologan, Victor"]
[Result "0-1"]
[ECO "B41"]
[WhiteElo "2409"]
[BlackElo "2574"]
[Annotator "ChessBase"]
[PlyCount "76"]
[EventDate "2021.10.12"]
[EventType "swiss"]
[EventCountry "RUS"]
[SourceTitle "playchess.com"]
[Source "ChessBase"]
[SourceQuality "1"]
[TimeControl "900+10"]

1. e4 {[%emt 0:00:04]} c5 {[%emt 0:00:06]} 2. Nf3 {[%emt 0:00:04]} e6 {[%emt 0:
00:00]} 3. d4 {[%emt 0:00:00]} cxd4 {[%emt 0:00:05]} 4. Nxd4 {[%emt 0:00:08]}
a6 {[%emt 0:00:01]} 5. c4 {[%emt 0:00:05]} Nf6 {[%emt 0:00:11]} 6. Nc3 {
[%emt 0:00:00]} Bb4 {[%emt 0:00:02]} 7. Qd3 {[%emt 0:00:17]} Qc7 {[%emt 0:00:
05]} 8. Bd2 {[%emt 0:00:19]} Nc6 {[%emt 0:00:13]} 9. Nb3 {[%emt 0:00:53]} O-O {
[%emt 0:02:17]} 10. a3 {[%emt 0:02:10]} Be7 {[%emt 0:00:57]} 11. Be2 {[%emt 0:
00:13]} Ne5 {[%emt 0:01:36]} 12. Qd4 {[%emt 0:01:03]} Ng6 {[%emt 0:00:45]} 13.
O-O {[%emt 0:00:52]} b6 {[%emt 0:02:41]} 14. Be3 {[%emt 0:00:39]} Bd6 {[%emt 0:
02:10]} 15. h3 {[%emt 0:05:59]} Rb8 {[%emt 0:00:20]} 16. Qd2 {[%emt 0:01:46]}
Bb7 {[%emt 0:00:05]} 17. Bd3 {[%emt 0:01:12]} Be5 {[%emt 0:01:42]} 18. f3 {
[%emt 0:00:21]} Nh5 {[%emt 0:00:49]} 19. Ne2 {[%emt 0:00:02]} Ngf4 {[%emt 0:00:
26]} 20. Nxf4 {[%emt 0:00:15]} Nxf4 {[%emt 0:00:00]} 21. Be2 {[%emt 0:01:41]}
f5 {[%emt 0:00:33]} 22. exf5 {[%emt 0:00:27]} Rxf5 {[%emt 0:00:00]} 23. Rfd1 {
[%emt 0:00:09]} Rf7 {[%emt 0:01:00]} 24. Rac1 {[%emt 0:00:13]} Nh5 {[%emt 0:00:
10]} 25. c5 {[%emt 0:00:18]} b5 {[%emt 0:00:13]} 26. Qa5 {[%emt 0:00:04]} Bh2+
{[%emt 0:00:11]} 27. Kf1 {[%emt 0:00:00]} Qe5 {[%emt 0:00:16]} 28. Qc3 {
[%emt 0:00:00]} Ng3+ {[%emt 0:00:35]} 29. Ke1 {[%emt 0:00:06]} Nxe2 {[%emt 0:
00:18]} 30. Qxe5 {[%emt 0:00:37]} Bxe5 {[%emt 0:00:01]} 31. Kxe2 {[%emt 0:00:
05]} Bxb2 {[%emt 0:00:04]} 32. Rc2 {[%emt 0:00:04]} Bxa3 {[%emt 0:00:04]} 33.
Bd2 {[%emt 0:00:23]} Bd5 {[%emt 0:00:07]} 34. Rb1 {[%emt 0:00:05]} Bc4+ {
[%emt 0:00:07]} 35. Ke3 {[%emt 0:00:02]} Rc8 {[%emt 0:00:30]} 36. Kd4 {[%emt 0:
00:03]} Rf5 {[%emt 0:00:13]} 37. Ba5 {[%emt 0:00:30]} Rd5+ {[%emt 0:00:04]} 38.
Ke3 {[%emt 0:00:01]} Rd3+ {[%emt 0:00:15]} 0-1

[Event "RUS-ch Rapid 2021"]
[Site "Sochi"]
[Date "2021.10.12"]
[Round "3.23"]
[White "Demidov, Mikhail"]
[Black "Shcherbin, Matvei"]
[Result "0-1"]
[ECO "A14"]
[WhiteElo "2551"]
[BlackElo "2366"]
[Annotator "ChessBase"]
[PlyCount "55"]
[EventDate "2021.10.12"]
[EventType "swiss"]
[EventCountry "RUS"]
[SourceTitle "playchess.com"]
[Source "ChessBase"]
[SourceQuality "1"]
[TimeControl "900+10"]

1. Nf3 {[%emt 0:00:00]} Nf6 {[%emt 0:00:04]} 2. g3 {[%emt 0:00:12]} e6 {
[%emt 0:00:02]} 3. Bg2 {[%emt 0:00:00]} d5 {[%emt 0:00:02]} 4. c4 {[%emt 0:00:
04]} Be7 {[%emt 0:00:02]} 5. O-O {[%emt 0:00:00]} O-O {[%emt 0:00:00]} 6. b3 {
[%emt 0:00:02]} b6 {[%emt 0:00:27]} 7. Bb2 {[%emt 0:00:02]} Bb7 {[%emt 0:00:00]
} 8. e3 {[%emt 0:00:08]} dxc4 {[%emt 0:00:48]} 9. bxc4 {[%emt 0:00:04]} Nbd7 {
[%emt 0:00:21]} 10. Qe2 {[%emt 0:00:05]} c5 {[%emt 0:00:06]} 11. d3 {[%emt 0:
00:14]} Qc7 {[%emt 0:01:00]} 12. Nc3 {[%emt 0:00:06]} Rad8 {[%emt 0:00:42]} 13.
Rfd1 {[%emt 0:00:02]} Rfe8 {[%emt 0:01:46]} 14. a4 {[%emt 0:00:18]} a5 {
[%emt 0:01:01]} 15. Rab1 {[%emt 0:00:38]} Nb8 {[%emt 0:00:13]} 16. Nb5 {
[%emt 0:00:08]} Qc6 {[%emt 0:00:17]} 17. Be5 {[%emt 0:01:39]} Na6 {[%emt 0:00:
54]} 18. Na7 {[%emt 0:03:09]} Qd7 {[%emt 0:00:12]} 19. Rxb6 {[%emt 0:00:34]}
Ng4 {[%emt 0:05:21]} 20. Bc3 {[%emt 0:01:54]} Nb4 {[%emt 0:02:00]} 21. Ne5 {
[%emt 0:00:47]} Bf3 {[%emt 0:01:24]} 22. Qxf3 {[%emt 0:04:53]} Nxe5 {[%emt 0:
00:02]} 23. Bxe5 {[%emt 0:00:03]} Qxa7 {[%emt 0:00:16]} 24. Rb7 {[%emt 0:01:10]
} Qa6 {[%emt 0:00:18]} 25. Qg4 {[%emt 0:00:06]} Bf8 {[%emt 0:00:25]} 26. Be4 {
[%emt 0:01:45]} Nd5 {[%emt 0:01:16]} 27. Qh5 {[%emt 0:00:31]} g6 {[%emt 0:00:
28]} 28. Bxg6 {[%emt 0:00:06]} 0-1

[Event "RUS-ch Rapid 2021"]
[Site "Sochi"]
[Date "2021.10.12"]
[Round "4.6"]
[White "Moiseenko, Vadim"]
[Black "Bryakin, Mikhail"]
[Result "1-0"]
[ECO "A11"]
[WhiteElo "2542"]
[BlackElo "2498"]
[Annotator "ChessBase"]
[PlyCount "155"]
[EventDate "2021.10.12"]
[EventType "swiss"]
[EventCountry "RUS"]
[SourceTitle "playchess.com"]
[Source "ChessBase"]
[SourceQuality "1"]
[TimeControl "900+10"]

1. g3 {[%emt 0:00:00]} d5 {[%emt 0:00:04]} 2. Bg2 {[%emt 0:00:08]} Nf6 {
[%emt 0:00:05]} 3. c4 {[%emt 0:00:11]} c6 {[%emt 0:00:10]} 4. Nf3 {[%emt 0:00:
30]} dxc4 {[%emt 0:00:11]} 5. Qc2 {[%emt 0:00:19]} g6 {[%emt 0:00:24]} 6. Qxc4
{[%emt 0:00:27]} Bg7 {[%emt 0:00:14]} 7. O-O {[%emt 0:00:00]} O-O {[%emt 0:00:
14]} 8. d3 {[%emt 0:00:06]} Nbd7 {[%emt 0:00:13]} 9. Nc3 {[%emt 0:00:06]} e5 {
[%emt 0:00:13]} 10. Qh4 {[%emt 0:00:33]} Nd5 {[%emt 0:01:26]} 11. Bg5 {[%emt 0:
03:11]} f6 {[%emt 0:00:16]} 12. Bd2 {[%emt 0:00:35]} N7b6 {[%emt 0:00:51]} 13.
Nxd5 {[%emt 0:02:10]} cxd5 {[%emt 0:00:45]} 14. Qb4 {[%emt 0:00:28]} Be6 {
[%emt 0:00:32]} 15. a4 {[%emt 0:00:21]} Qd7 {[%emt 0:01:06]} 16. Rfc1 {[%emt 0:
01:29]} Rfc8 {[%emt 0:00:21]} 17. a5 {[%emt 0:00:15]} Rxc1+ {[%emt 0:00:59]}
18. Rxc1 {[%emt 0:00:00]} Nc8 {[%emt 0:00:11]} 19. Ne1 {[%emt 0:01:38]} Ne7 {
[%emt 0:00:11]} 20. Qa3 {[%emt 0:01:16]} a6 {[%emt 0:00:41]} 21. Bb4 {[%emt 0:
00:28]} Nc6 {[%emt 0:00:16]} 22. Bc5 {[%emt 0:00:00]} Rc8 {[%emt 0:00:15]} 23.
b4 {[%emt 0:00:26]} f5 {[%emt 0:03:32]} 24. Nf3 {[%emt 0:01:13]} Bh6 {[%emt 0:
02:09]} 25. Rd1 {[%emt 0:00:18]} Bf7 {[%emt 0:00:30]} 26. Qb2 {[%emt 0:01:08]}
Re8 {[%emt 0:01:34]} 27. b5 {[%emt 0:00:02]} axb5 {[%emt 0:00:03]} 28. Qxb5 {
[%emt 0:00:01]} Nb8 {[%emt 0:00:02]} 29. Qb2 {[%emt 0:00:13]} Nc6 {[%emt 0:00:
21]} 30. Qb5 {[%emt 0:00:51]} Nb8 {[%emt 0:00:00]} 31. Rb1 {[%emt 0:00:16]}
Qxb5 {[%emt 0:00:15]} 32. Rxb5 {[%emt 0:00:00]} Nc6 {[%emt 0:00:05]} 33. e3 {
[%emt 0:00:39]} Ra8 {[%emt 0:00:12]} 34. Bb6 {[%emt 0:00:20]} e4 {[%emt 0:01:
02]} 35. dxe4 {[%emt 0:00:01]} dxe4 {[%emt 0:00:02]} 36. Nd4 {[%emt 0:00:17]}
Nxd4 {[%emt 0:00:10]} 37. Bxd4 {[%emt 0:00:02]} Bc4 {[%emt 0:00:08]} 38. Rc5 {
[%emt 0:00:16]} Bd3 {[%emt 0:00:16]} 39. Bc3 {[%emt 0:00:42]} Bg7 {[%emt 0:01:
10]} 40. Bxg7 {[%emt 0:00:44]} Kxg7 {[%emt 0:00:00]} 41. h3 {[%emt 0:00:02]}
Kf6 {[%emt 0:00:26]} 42. g4 {[%emt 0:00:05]} Ra6 {[%emt 0:00:21]} 43. Kh2 {
[%emt 0:00:00]} Rc6 {[%emt 0:00:05]} 44. Rxc6+ {[%emt 0:00:29]} bxc6 {[%emt 0:
00:00]} 45. Kg3 {[%emt 0:00:10]} c5 {[%emt 0:00:11]} 46. f3 {[%emt 0:00:04]} c4
{[%emt 0:00:20]} 47. a6 {[%emt 0:00:01]} c3 {[%emt 0:00:00]} 48. a7 {[%emt 0:
00:01]} c2 {[%emt 0:00:00]} 49. a8=Q {[%emt 0:00:03]} c1=Q {[%emt 0:00:05]} 50.
Qh8+ {[%emt 0:00:22]} Ke6 {[%emt 0:00:03]} 51. Qxh7 {[%emt 0:00:19]} Qxe3 {
[%emt 0:00:40]} 52. Qxg6+ {[%emt 0:00:04]} Kd5 {[%emt 0:00:16]} 53. Qxf5+ {
[%emt 0:00:04]} Kc4 {[%emt 0:00:08]} 54. Qf4 {[%emt 0:00:15]} Qe1+ {[%emt 0:00:
14]} 55. Kh2 {[%emt 0:00:00]} Qf2 {[%emt 0:00:05]} 56. Qc7+ {[%emt 0:00:25]}
Kb3 {[%emt 0:00:00]} 57. fxe4 {[%emt 0:00:08]} Kb4 {[%emt 0:00:11]} 58. Qg3 {
[%emt 0:00:10]} Qd2 {[%emt 0:00:09]} 59. g5 {[%emt 0:00:17]} Bf1 {[%emt 0:00:
08]} 60. h4 {[%emt 0:00:04]} Kc4 {[%emt 0:00:24]} 61. g6 {[%emt 0:00:10]} Bxg2
{[%emt 0:00:03]} 62. Qxg2 {[%emt 0:00:00]} Qf4+ {[%emt 0:00:04]} 63. Kh3 {
[%emt 0:00:06]} Qe3+ {[%emt 0:00:01]} 64. Kg4 {[%emt 0:00:02]} Qh6 {[%emt 0:00:
10]} 65. h5 {[%emt 0:00:32]} Kd4 {[%emt 0:00:02]} 66. Qf3 {[%emt 0:00:05]} Qg7
{[%emt 0:00:20]} 67. Qf4 {[%emt 0:00:13]} Qe7 {[%emt 0:00:19]} 68. e5+ {
[%emt 0:00:15]} Kd3 {[%emt 0:00:04]} 69. Qf5+ {[%emt 0:00:11]} Kd4 {[%emt 0:00:
09]} 70. h6 {[%emt 0:00:06]} Qb7 {[%emt 0:00:14]} 71. g7 {[%emt 0:00:06]} Qg2+
{[%emt 0:00:00]} 72. Kh5 {[%emt 0:00:02]} Kd5 {[%emt 0:00:12]} 73. e6+ {
[%emt 0:00:12]} Kd6 {[%emt 0:00:01]} 74. Qf4+ {[%emt 0:00:13]} Kc6 {[%emt 0:00:
12]} 75. e7 {[%emt 0:00:22]} Qd5+ {[%emt 0:00:18]} 76. Kg6 {[%emt 0:00:05]} Qg8
{[%emt 0:00:20]} 77. h7 {[%emt 0:00:16]} Qa2 {[%emt 0:00:15]} 78. e8=Q+ {
[%emt 0:00:06]} 1-0

[Event "RUS-ch Rapid 2021"]
[Site "Sochi"]
[Date "2021.10.12"]
[Round "4.10"]
[White "Bologan, Victor"]
[Black "Belozerov, Andrei"]
[Result "1-0"]
[ECO "B31"]
[WhiteElo "2574"]
[BlackElo "2476"]
[Annotator "ChessBase"]
[PlyCount "103"]
[EventDate "2021.10.12"]
[EventType "swiss"]
[EventCountry "RUS"]
[SourceTitle "playchess.com"]
[Source "ChessBase"]
[SourceQuality "1"]
[TimeControl "900+10"]

1. e4 {[%emt 0:00:04]} c5 {[%emt 0:00:34]} 2. Nf3 {[%emt 0:00:00]} Nc6 {
[%emt 0:00:00]} 3. Bb5 {[%emt 0:00:03]} g6 {[%emt 0:00:00]} 4. Bxc6 {[%emt 0:
00:00]} bxc6 {[%emt 0:00:05]} 5. O-O {[%emt 0:00:03]} Bg7 {[%emt 0:00:00]} 6.
Re1 {[%emt 0:00:11]} Nf6 {[%emt 0:00:06]} 7. e5 {[%emt 0:00:10]} Nd5 {[%emt 0:
00:00]} 8. c4 {[%emt 0:00:00]} Nc7 {[%emt 0:00:03]} 9. b3 {[%emt 0:00:08]} d5 {
[%emt 0:01:34]} 10. h3 {[%emt 0:00:52]} dxc4 {[%emt 0:01:11]} 11. bxc4 {
[%emt 0:00:01]} O-O {[%emt 0:00:09]} 12. Nc3 {[%emt 0:00:15]} Bf5 {[%emt 0:00:
33]} 13. Qa4 {[%emt 0:02:22]} Qd7 {[%emt 0:01:10]} 14. Ba3 {[%emt 0:00:18]} Ne6
{[%emt 0:00:08]} 15. Ne4 {[%emt 0:03:47]} Bxe4 {[%emt 0:01:50]} 16. Rxe4 {
[%emt 0:00:02]} Rab8 {[%emt 0:00:15]} 17. Qc2 {[%emt 0:00:21]} Rfd8 {[%emt 0:
00:09]} 18. Bb2 {[%emt 0:00:10]} Rb7 {[%emt 0:01:03]} 19. Bc3 {[%emt 0:00:11]}
Qd3 {[%emt 0:00:38]} 20. Qxd3 {[%emt 0:00:33]} Rxd3 {[%emt 0:00:04]} 21. Kf1 {
[%emt 0:00:24]} Bh6 {[%emt 0:00:29]} 22. h4 {[%emt 0:00:25]} Nf4 {[%emt 0:01:
19]} 23. Ree1 {[%emt 0:01:27]} Rd8 {[%emt 0:00:34]} 24. Reb1 {[%emt 0:00:08]}
Rdb8 {[%emt 0:00:12]} 25. Rxb7 {[%emt 0:00:05]} Rxb7 {[%emt 0:00:00]} 26. g3 {
[%emt 0:00:03]} Ne6 {[%emt 0:00:17]} 27. Ke2 {[%emt 0:01:16]} Bg7 {[%emt 0:00:
39]} 28. Kd3 {[%emt 0:00:08]} f6 {[%emt 0:00:05]} 29. Re1 {[%emt 0:00:23]} Kf7
{[%emt 0:00:04]} 30. Kc2 {[%emt 0:00:06]} h5 {[%emt 0:00:38]} 31. Re3 {[%emt 0:
00:24]} Rd7 {[%emt 0:00:32]} 32. Bb2 {[%emt 0:00:15]} Bh6 {[%emt 0:00:56]} 33.
Ra3 {[%emt 0:00:06]} f5 {[%emt 0:01:15]} 34. Ra6 {[%emt 0:00:12]} Rc7 {[%emt 0:
00:45]} 35. Bc3 {[%emt 0:00:00]} f4 {[%emt 0:01:06]} 36. Ba5 {[%emt 0:00:12]}
fxg3 {[%emt 0:00:34]} 37. fxg3 {[%emt 0:00:04]} Rc8 {[%emt 0:01:44]} 38. Rxa7 {
[%emt 0:00:04]} g5 {[%emt 0:00:10]} 39. hxg5 {[%emt 0:00:32]} Bxg5 {[%emt 0:00:
25]} 40. Bc3 {[%emt 0:02:31]} Bh6 {[%emt 0:00:08]} 41. Nh4 {[%emt 0:00:12]} Bg5
{[%emt 0:00:23]} 42. Nf5 {[%emt 0:00:11]} Rc7 {[%emt 0:00:06]} 43. Rxc7 {
[%emt 0:00:15]} Nxc7 {[%emt 0:00:00]} 44. Kd3 {[%emt 0:00:04]} Kg6 {[%emt 0:00:
22]} 45. Ke4 {[%emt 0:00:03]} Na6 {[%emt 0:00:05]} 46. a3 {[%emt 0:00:10]} Nc7
{[%emt 0:00:14]} 47. Ba5 {[%emt 0:00:06]} Na6 {[%emt 0:00:09]} 48. a4 {[%emt 0:
00:33]} Kf7 {[%emt 0:00:10]} 49. Bc3 {[%emt 0:00:18]} e6 {[%emt 0:00:07]} 50.
Nd6+ {[%emt 0:00:10]} Ke7 {[%emt 0:00:09]} 51. Kf3 {[%emt 0:00:13]} h4 {
[%emt 0:00:06]} 52. Ne4 {[%emt 0:00:05]} 1-0

[Event "RUS-ch Rapid 2021"]
[Site "Sochi"]
[Date "2021.10.12"]
[Round "4.11"]
[White "Ivlev, Aleksey"]
[Black "Kokarev, Dmitry"]
[Result "1/2-1/2"]
[ECO "B14"]
[WhiteElo "2315"]
[BlackElo "2579"]
[Annotator "ChessBase"]
[PlyCount "107"]
[EventDate "2021.10.12"]
[EventType "swiss"]
[EventCountry "RUS"]
[SourceTitle "playchess.com"]
[Source "ChessBase"]
[SourceQuality "1"]
[TimeControl "900+10"]

1. d4 {[%emt 0:00:04]} Nf6 {[%emt 0:00:06]} 2. c4 {[%emt 0:00:00]} g6 {[%emt 0:
00:00]} 3. Nf3 {[%emt 0:00:08]} Bg7 {[%emt 0:00:00]} 4. Nc3 {[%emt 0:00:02]}
O-O {[%emt 0:00:11]} 5. Bg5 {[%emt 0:00:03]} c5 {[%emt 0:00:00]} 6. e3 {
[%emt 0:00:00]} cxd4 {[%emt 0:00:02]} 7. exd4 {[%emt 0:00:09]} d5 {[%emt 0:00:
00]} 8. Bxf6 {[%emt 0:00:53]} Bxf6 {[%emt 0:00:06]} 9. cxd5 {[%emt 0:00:07]}
Bg4 {[%emt 0:00:03]} 10. Be2 {[%emt 0:00:46]} Bxf3 {[%emt 0:00:20]} 11. Bxf3 {
[%emt 0:00:00]} Qb6 {[%emt 0:00:00]} 12. Qd2 {[%emt 0:00:19]} Bxd4 {[%emt 0:00:
41]} 13. O-O {[%emt 0:00:16]} Nd7 {[%emt 0:00:03]} 14. d6 {[%emt 0:01:23]} e5 {
[%emt 0:01:40]} 15. Ne2 {[%emt 0:01:21]} Bc5 {[%emt 0:00:43]} 16. Rad1 {
[%emt 0:01:28]} Rad8 {[%emt 0:01:54]} 17. Nc3 {[%emt 0:01:32]} Bd4 {[%emt 0:00:
05]} 18. Ne2 {[%emt 0:00:21]} Nc5 {[%emt 0:00:59]} 19. Nxd4 {[%emt 0:00:52]}
Rxd6 {[%emt 0:00:00]} 20. Qe3 {[%emt 0:01:47]} exd4 {[%emt 0:00:28]} 21. Rxd4 {
[%emt 0:00:00]} Rxd4 {[%emt 0:00:15]} 22. Qxd4 {[%emt 0:00:08]} Rd8 {[%emt 0:
00:11]} 23. Qc3 {[%emt 0:01:20]} Ne6 {[%emt 0:00:53]} 24. Qf6 {[%emt 0:03:12]}
Rd2 {[%emt 0:00:54]} 25. b3 {[%emt 0:00:51]} Rxa2 {[%emt 0:00:59]} 26. Bd5 {
[%emt 0:00:33]} Rd2 {[%emt 0:00:35]} 27. Bc4 {[%emt 0:00:36]} Qd4 {[%emt 0:00:
37]} 28. Qf3 {[%emt 0:00:24]} Qd7 {[%emt 0:00:38]} 29. Bxe6 {[%emt 0:00:25]}
fxe6 {[%emt 0:00:03]} 30. h4 {[%emt 0:00:20]} Rd3 {[%emt 0:00:37]} 31. Qg4 {
[%emt 0:00:19]} Rd4 {[%emt 0:00:17]} 32. Qf3 {[%emt 0:00:09]} Qd5 {[%emt 0:00:
55]} 33. Qe2 {[%emt 0:00:13]} Qc6 {[%emt 0:01:46]} 34. h5 {[%emt 0:00:21]} Qe4
{[%emt 0:01:22]} 35. Qb5 {[%emt 0:00:05]} gxh5 {[%emt 0:00:07]} 36. Qe8+ {
[%emt 0:00:29]} Kg7 {[%emt 0:00:01]} 37. Rc1 {[%emt 0:00:01]} Qf5 {[%emt 0:00:
44]} 38. Qe7+ {[%emt 0:00:09]} Kh6 {[%emt 0:00:26]} 39. Qxb7 {[%emt 0:00:06]}
a5 {[%emt 0:00:21]} 40. Qb6 {[%emt 0:00:13]} Re4 {[%emt 0:00:41]} 41. Ra1 {
[%emt 0:00:21]} Re5 {[%emt 0:00:08]} 42. Qd4 {[%emt 0:00:08]} Rd5 {[%emt 0:00:
13]} 43. Qe3+ {[%emt 0:00:00]} Kg6 {[%emt 0:00:05]} 44. Re1 {[%emt 0:00:00]} e5
{[%emt 0:00:24]} 45. Rc1 {[%emt 0:00:16]} Rd6 {[%emt 0:00:15]} 46. Rc5 {
[%emt 0:00:20]} Rd1+ {[%emt 0:00:32]} 47. Kh2 {[%emt 0:00:03]} Qf4+ {[%emt 0:
00:06]} 48. Qxf4 {[%emt 0:00:10]} exf4 {[%emt 0:00:00]} 49. Rxa5 {[%emt 0:00:
04]} f3 {[%emt 0:00:38]} 50. gxf3 {[%emt 0:00:00]} Rd3 {[%emt 0:00:02]} 51. Rb5
{[%emt 0:00:14]} Rxf3 {[%emt 0:00:00]} 52. Kg2 {[%emt 0:00:04]} Rc3 {[%emt 0:
00:00]} 53. Rb8 {[%emt 0:00:01]} h4 {[%emt 0:00:05]} 54. b4 {[%emt 0:00:18]}
1/2-1/2

[Event "RUS-ch Rapid 2021"]
[Site "Sochi"]
[Date "2021.10.12"]
[Round "4.12"]
[White "Afanasiev, Nikita"]
[Black "Klukin, Kirill"]
[Result "1/2-1/2"]
[ECO "A14"]
[WhiteElo "2560"]
[BlackElo "2346"]
[Annotator "ChessBase"]
[PlyCount "88"]
[EventDate "2021.10.12"]
[EventType "swiss"]
[EventCountry "RUS"]
[SourceTitle "playchess.com"]
[Source "ChessBase"]
[SourceQuality "1"]
[TimeControl "900+10"]

1. Nf3 {[%emt 0:00:05]} Nf6 {[%emt 0:00:06]} 2. g3 {[%emt 0:00:00]} d5 {
[%emt 0:00:03]} 3. Bg2 {[%emt 0:00:00]} e6 {[%emt 0:00:02]} 4. O-O {[%emt 0:00:
11]} Be7 {[%emt 0:00:00]} 5. c4 {[%emt 0:00:00]} O-O {[%emt 0:00:05]} 6. b3 {
[%emt 0:00:00]} b6 {[%emt 0:00:57]} 7. Bb2 {[%emt 0:00:10]} Bb7 {[%emt 0:00:05]
} 8. e3 {[%emt 0:00:11]} c5 {[%emt 0:01:36]} 9. Qe2 {[%emt 0:00:37]} Nc6 {
[%emt 0:00:34]} 10. d3 {[%emt 0:00:18]} Qd7 {[%emt 0:00:18]} 11. Nbd2 {[%emt 0:
00:20]} Rfd8 {[%emt 0:00:00]} 12. Rfd1 {[%emt 0:00:19]} a6 {[%emt 0:00:53]} 13.
Rac1 {[%emt 0:00:13]} Rac8 {[%emt 0:01:22]} 14. cxd5 {[%emt 0:01:14]} exd5 {
[%emt 0:01:53]} 15. d4 {[%emt 0:00:13]} Qc7 {[%emt 0:00:23]} 16. Ne5 {[%emt 0:
03:32]} Nxe5 {[%emt 0:00:47]} 17. dxe5 {[%emt 0:00:04]} Nd7 {[%emt 0:01:13]}
18. f4 {[%emt 0:00:34]} b5 {[%emt 0:00:19]} 19. Nf3 {[%emt 0:01:11]} c4 {
[%emt 0:01:29]} 20. Bh3 {[%emt 0:01:48]} Nc5 {[%emt 0:01:53]} 21. Nd4 {[%emt 0:
04:26]} Ne4 {[%emt 0:01:07]} 22. Bf5 {[%emt 0:00:36]} g6 {[%emt 0:00:53]} 23.
Bxe4 {[%emt 0:00:05]} dxe4 {[%emt 0:00:00]} 24. bxc4 {[%emt 0:00:00]} bxc4 {
[%emt 0:00:04]} 25. Bc3 {[%emt 0:00:17]} Bd5 {[%emt 0:00:20]} 26. f5 {[%emt 0:
00:39]} Bc5 {[%emt 0:00:30]} 27. Rf1 {[%emt 0:00:11]} Re8 {[%emt 0:00:48]} 28.
e6 {[%emt 0:00:54]} fxe6 {[%emt 0:00:25]} 29. fxg6 {[%emt 0:00:01]} e5 {
[%emt 0:00:27]} 30. gxh7+ {[%emt 0:00:36]} Qxh7 {[%emt 0:00:14]} 31. Nf5 {
[%emt 0:00:00]} Qg6 {[%emt 0:00:11]} 32. Rf2 {[%emt 0:00:56]} Rcd8 {[%emt 0:00:
51]} 33. Rcf1 {[%emt 0:00:05]} Be6 {[%emt 0:00:30]} 34. Bxe5 {[%emt 0:00:09]}
Rd5 {[%emt 0:00:17]} 35. Bd4 {[%emt 0:00:33]} Rxf5 {[%emt 0:00:13]} 36. Rxf5 {
[%emt 0:00:28]} Bxd4 {[%emt 0:00:00]} 37. Ra5 {[%emt 0:00:02]} Bg7 {[%emt 0:00:
11]} 38. Rxa6 {[%emt 0:00:04]} c3 {[%emt 0:00:00]} 39. Qb5 {[%emt 0:00:11]} Rc8
{[%emt 0:00:22]} 40. Qb7 {[%emt 0:00:10]} Qe8 {[%emt 0:00:04]} 41. Ra7 {
[%emt 0:00:22]} Qg6 {[%emt 0:00:12]} 42. Ra6 {[%emt 0:00:00]} Qe8 {[%emt 0:00:
02]} 43. Ra7 {[%emt 0:00:00]} Qg6 {[%emt 0:00:02]} 44. Ra6 {[%emt 0:00:05]} Qe8
{[%emt 0:00:08]} 1/2-1/2